[Event "CCT Chessable Masters Play-In 2025"]
[Site "Online"]
[Date "2025.02.17"]
[Round "4.49"]
[White "Martinez Alcantara, Jose Eduardo"]
[Black "Naroditsky, Daniel"]
[Result "1/2-1/2"]
[ECO "B27"]
[WhiteElo "2606"]
[BlackElo "2619"]
[PlyCount "183"]
[EventDate "2025.02.13"]
[EventType "swiss"]
[EventCountry "NET"]
[TimeControl "600"]
[WhiteClock "0:01:20"]
[BlackClock "0:01:04"]

1. e4 {[%emt 0:00:01]} g6 {[%emt 0:00:06]} 2. d4 {[%emt 0:00:01]} Bg7 {[%emt 0:00:01]} 3. c3 {[%emt 0:00:00]} d5 {[%emt 0:00:02]} 4. e5 {[%emt 0:00:01]} c5 {[%emt 0:00:03]} 5. Nf3 {[%emt 0:00:01]} Bg4 {[%emt 0:00:24]} 6. Nbd2 {[%emt 0:00:01]} cxd4 {[%emt 0:00:10]} 7. cxd4 {[%emt 0:00:00]} Nc6 {[%emt 0:00:20]} 8. Bb5 {[%emt 0:00:04]} Rc8 {[%emt 0:00:06]} 9. O-O {[%emt 0:00:03]} a6 {[%emt 0:00:12]} 10. Bxc6+ {[%emt 0:00:01]} Rxc6 {[%emt 0:00:00]} 11. h3 {[%emt 0:00:01]} Bf5 {[%emt 0:00:03]} 12. Nb3 {[%emt 0:00:00]} Bc2 {[%emt 0:00:17]} 13. Qe2 {[%emt 0:00:02]} Bxb3 {[%emt 0:00:05]} 14. axb3 {[%emt 0:00:02]} e6 {[%emt 0:00:03]} 15. Bg5 {[%emt 0:00:02]} Ne7 {[%emt 0:00:01]} 16. Rac1 {[%emt 0:00:02]} Qc7 {[%emt 0:00:08]} 17. Qd2 {[%emt 0:00:13]} O-O {[%emt 0:00:09]} 18. Bf6 {[%emt 0:00:25]} Rc8 {[%emt 0:00:13]} 19. Rxc6 {[%emt 0:00:02]} Nxc6 {[%emt 0:00:00]} 20. Bxg7 {[%emt 0:00:00]} Kxg7 {[%emt 0:00:01]} 21. Qf4 {[%emt 0:00:00]} Qe7 {[%emt 0:00:06]} 22. Rc1 {[%emt 0:00:07]} h6 {[%emt 0:00:20]} 23. Rc3 {[%emt 0:00:07]} Na7 {[%emt 0:00:16]} 24. h4 {[%emt 0:00:11]} Rxc3 {[%emt 0:00:14]} 25. bxc3 {[%emt 0:00:00]} b5 {[%emt 0:00:02]} 26. b4 {[%emt 0:00:09]} Nc8 {[%emt 0:00:03]} 27. g3 {[%emt 0:00:05]} Nb6 {[%emt 0:00:03]} 28. Nh2 {[%emt 0:00:01]} g5 {[%emt 0:00:05]} 29. Qg4 {[%emt 0:00:13]} Nd7 {[%emt 0:00:16]} 30. hxg5 {[%emt 0:00:31]} Qxg5 {[%emt 0:00:02]} 31. Qf3 {[%emt 0:00:11]} f6 {[%emt 0:00:13]} 32. exf6+ {[%emt 0:00:07]} Nxf6 {[%emt 0:00:00]} 33. Nf1 {[%emt 0:00:03]} Ne4 {[%emt 0:00:07]} 34. Kg2 {[%emt 0:00:01]} h5 {[%emt 0:00:13]} 35. Nh2 {[%emt 0:00:18]} h4 {[%emt 0:00:13]} 36. Ng4 {[%emt 0:00:04]} hxg3 {[%emt 0:00:18]} 37. fxg3 {[%emt 0:00:00]} Qd2+ {[%emt 0:00:01]} 38. Nf2 {[%emt 0:00:01]} Nxf2 {[%emt 0:00:49]} 39. Qxf2 {[%emt 0:00:00]} Qxc3 {[%emt 0:00:00]} 40. Qf4 {[%emt 0:00:00]} Qc2+ {[%emt 0:00:27]} 41. Kg1 {[%emt 0:00:03]} Qb1+ {[%emt 0:00:03]} 42. Kg2 {[%emt 0:00:02]} Qxb4 {[%emt 0:00:14]} 43. Qg5+ {[%emt 0:00:01]} Kf7 {[%emt 0:00:02]} 44. Qf4+ {[%emt 0:00:00]} Ke8 {[%emt 0:00:08]} 45. Qb8+ {[%emt 0:00:02]} Kd7 {[%emt 0:00:00]} 46. Qb7+ {[%emt 0:00:01]} Kd8 {[%emt 0:00:02]} 47. Qb8+ {[%emt 0:00:02]} Ke7 {[%emt 0:00:01]} 48. Qc7+ {[%emt 0:00:01]} Kf8 {[%emt 0:00:01]} 49. Qf4+ {[%emt 0:00:01]} Kg7 {[%emt 0:00:02]} 50. Qg4+ {[%emt 0:00:02]} Kf8 {[%emt 0:00:15]} 51. Qf4+ {[%emt 0:00:02]} Ke8 {[%emt 0:00:04]} 52. Qb8+ {[%emt 0:00:00]} Kd7 {[%emt 0:00:04]} 53. Qb7+ {[%emt 0:00:01]} Kd6 {[%emt 0:00:04]} 54. Qxa6+ {[%emt 0:00:37]} Ke7 {[%emt 0:00:02]} 55. Qb7+ {[%emt 0:00:00]} Kf6 {[%emt 0:00:00]} 56. Qb8 {[%emt 0:00:01]} Qd2+ {[%emt 0:00:09]} 57. Kh3 {[%emt 0:00:02]} Qh6+ {[%emt 0:00:00]} 58. Kg2 {[%emt 0:00:00]} Qd2+ {[%emt 0:00:02]} 59. Kh3 {[%emt 0:00:01]} Qh6+ {[%emt 0:00:24]} 60. Kg2 {[%emt 0:00:01]} Qg6 {[%emt 0:00:05]} 61. Qe5+ {[%emt 0:00:42]} Kf7 {[%emt 0:00:01]} 62. Qc7+ {[%emt 0:00:00]} Kg8 {[%emt 0:00:02]} 63. Qb8+ {[%emt 0:00:02]} Kg7 {[%emt 0:00:03]} 64. Qc7+ {[%emt 0:00:15]} Kh6 {[%emt 0:00:02]} 65. Qf4+ {[%emt 0:00:05]} Qg5 {[%emt 0:00:00]} 66. Qf8+ {[%emt 0:00:04]} Qg7 {[%emt 0:00:01]} 67. Qc5 {[%emt 0:00:17]} Qf6 {[%emt 0:00:03]} 68. Qc1+ {[%emt 0:00:07]} Kg6 {[%emt 0:00:01]} 69. Qb1+ {[%emt 0:00:01]} Qf5 {[%emt 0:00:01]} 70. Qxb5 {[%emt 0:01:08]} Qe4+ {[%emt 0:00:01]} 71. Kh2 {[%emt 0:00:00]} Qxd4 {[%emt 0:00:01]} 72. Qe8+ {[%emt 0:00:01]} Kf5 {[%emt 0:00:07]} 73. Qf7+ {[%emt 0:00:01]} Qf6 {[%emt 0:00:04]} 74. Qh5+ {[%emt 0:00:01]} Qg5 {[%emt 0:00:06]} 75. Qf7+ {[%emt 0:00:07]} Ke5 {[%emt 0:00:01]} 76. Qc7+ {[%emt 0:00:02]} Ke4 {[%emt 0:00:02]} 77. Qc2+ {[%emt 0:00:01]} Kd4 {[%emt 0:00:02]} 78. Qb2+ {[%emt 0:00:04]} Kd3 {[%emt 0:00:00]} 79. Qb3+ {[%emt 0:00:10]} Ke2 {[%emt 0:00:01]} 80. Qb5+ {[%emt 0:00:09]} Ke1 {[%emt 0:00:02]} 81. Qa5+ {[%emt 0:00:16]} Kf2 {[%emt 0:00:02]} 82. Qa2+ {[%emt 0:00:28]} Kf3 {[%emt 0:00:01]} 83. Qg2+ {[%emt 0:00:11]} Ke3 {[%emt 0:00:00]} 84. Qg1+ {[%emt 0:00:01]} Ke2 {[%emt 0:00:02]} 85. Qg2+ {[%emt 0:00:02]} Ke3 {[%emt 0:00:02]} 86. Qg1+ {[%emt 0:00:01]} Ke4 {[%emt 0:00:02]} 87. Qb1+ {[%emt 0:00:01]} Kd4 {[%emt 0:00:03]} 88. Qb6+ {[%emt 0:00:06]} Ke5 {[%emt 0:00:01]} 89. Qc7+ {[%emt 0:00:03]} Kf5 {[%emt 0:00:01]} 90. Qf7+ {[%emt 0:00:01]} Qf6 {[%emt 0:00:02]} 91. Qh5+ {[%emt 0:00:01]} Qg5 {[%emt 0:00:05]} 92. Qf7+ {[%emt 0:00:01]} 1/2-1/2

[Event "CCT Chessable Masters Play-In 2025"]
[Site "Online"]
[Date "2025.02.17"]
[Round "4.50"]
[White "Ding, Liren"]
[Black "Matinian, Nikita"]
[Result "1-0"]
[ECO "C64"]
[WhiteElo "2734"]
[BlackElo "2415"]
[PlyCount "113"]
[EventDate "2025.02.13"]
[EventType "swiss"]
[EventCountry "NET"]
[TimeControl "600"]
[WhiteClock "0:00:19"]

1. e4 {[%emt 0:00:01]} e5 {[%emt 0:00:03]} 2. Nf3 {[%emt 0:00:00]} Nc6 {[%emt 0:00:00]} 3. Bb5 {[%emt 0:00:02]} a6 {[%emt 0:00:02]} 4. Ba4 {[%emt 0:00:01]} Bc5 {[%emt 0:00:02]} 5. O-O {[%emt 0:00:08]} Nge7 {[%emt 0:00:19]} 6. c3 {[%emt 0:00:01]} Ng6 {[%emt 0:00:29]} 7. d4 {[%emt 0:00:01]} Ba7 {[%emt 0:00:01]} 8. Bg5 {[%emt 0:00:01]} f6 {[%emt 0:00:04]} 9. Be3 {[%emt 0:00:00]} O-O {[%emt 0:00:12]} 10. Re1 {[%emt 0:00:03]} Kh8 {[%emt 0:00:09]} 11. h3 {[%emt 0:00:00]} d6 {[%emt 0:00:06]} 12. Nbd2 {[%emt 0:01:12]} Nce7 {[%emt 0:00:05]} 13. Bc2 {[%emt 0:00:56]} Qe8 {[%emt 0:01:57]} 14. Nf1 {[%emt 0:00:13]} Bd7 {[%emt 0:00:10]} 15. Ng3 {[%emt 0:00:01]} Rd8 {[%emt 0:00:03]} 16. Qe2 {[%emt 0:01:28]} c5 {[%emt 0:01:16]} 17. d5 {[%emt 0:00:29]} Nf4 {[%emt 0:00:27]} 18. Qd2 {[%emt 0:00:14]} g5 {[%emt 0:00:04]} 19. Nh2 {[%emt 0:00:04]} Qg6 {[%emt 0:00:57]} 20. c4 {[%emt 0:00:03]} b5 {[%emt 0:00:07]} 21. b3 {[%emt 0:00:02]} Rg8 {[%emt 0:00:21]} 22. Qa5 {[%emt 0:00:41]} h5 {[%emt 0:01:06]} 23. Qxa6 {[%emt 0:00:37]} Bb8 {[%emt 0:00:01]} 24. cxb5 {[%emt 0:00:01]} Nexd5 {[%emt 0:00:31]} 25. b6 {[%emt 0:01:17]} Nb4 {[%emt 0:00:15]} 26. Qc4 {[%emt 0:00:01]} d5 {[%emt 0:00:03]} 27. Qxc5 {[%emt 0:00:01]} Nxc2 {[%emt 0:00:03]} 28. Qxc2 {[%emt 0:00:00]} d4 {[%emt 0:00:08]} 29. Bd2 {[%emt 0:00:01]} h4 {[%emt 0:00:07]} 30. Nf5 {[%emt 0:00:01]} d3 {[%emt 0:00:01]} 31. Qc4 {[%emt 0:00:23]} Bxf5 {[%emt 0:00:01]} 32. exf5 {[%emt 0:00:02]} Qxf5 {[%emt 0:00:00]} 33. Ng4 {[%emt 0:00:21]} Rd4 {[%emt 0:00:04]} 34. Qc6 {[%emt 0:00:02]} Ne2+ {[%emt 0:00:13]} 35. Kh1 {[%emt 0:00:34]} Rxg4 {[%emt 0:00:01]} 36. hxg4 {[%emt 0:00:00]} Qxf2 {[%emt 0:00:01]} 37. Qf3 {[%emt 0:00:04]} Ng3+ {[%emt 0:00:08]} 38. Kh2 {[%emt 0:00:01]} Qxd2 {[%emt 0:00:06]} 39. Qxf6+ {[%emt 0:00:02]} Kh7 {[%emt 0:00:00]} 40. Rad1 {[%emt 0:00:03]} Qf4 {[%emt 0:00:02]} 41. Qxf4 {[%emt 0:00:01]} gxf4 {[%emt 0:00:00]} 42. Rxd3 {[%emt 0:00:01]} e4 {[%emt 0:00:01]} 43. Rd7+ {[%emt 0:00:00]} Kh6 {[%emt 0:00:01]} 44. a4 {[%emt 0:00:03]} f3 {[%emt 0:00:00]} 45. gxf3 {[%emt 0:00:01]} exf3 {[%emt 0:00:01]} 46. Kg1 {[%emt 0:00:02]} Rxg4 {[%emt 0:00:02]} 47. Kf2 {[%emt 0:00:00]} Ne4+ {[%emt 0:00:01]} 48. Kxf3 {[%emt 0:00:01]} Rf4+ {[%emt 0:00:01]} 49. Ke3 {[%emt 0:00:03]} Nf6 {[%emt 0:00:00]} 50. Rd8 {[%emt 0:00:03]} Re4+ {[%emt 0:00:01]} 51. Kd2 {[%emt 0:00:04]} Bf4+ {[%emt 0:00:01]} 52. Kd1 {[%emt 0:00:00]} Rxe1+ {[%emt 0:00:02]} 53. Kxe1 {[%emt 0:00:00]} h3 {[%emt 0:00:00]} 54. Kf2 {[%emt 0:00:03]} Ne4+ {[%emt 0:00:02]} 55. Kf1 {[%emt 0:00:04]} Ng3+ {[%emt 0:00:01]} 56. Kg1 {[%emt 0:00:02]} Ne2+ 57. Kf2 {[%emt 0:00:01]} 1-0

[Event "CCT Chessable Masters Play-In 2025"]
[Site "Online"]
[Date "2025.02.17"]
[Round "4.51"]
[White "Hong, Andrew"]
[Black "Esipenko, Andrey"]
[Result "0-1"]
[ECO "B31"]
[WhiteElo "2579"]
[BlackElo "2695"]
[PlyCount "64"]
[EventDate "2025.02.13"]
[EventType "swiss"]
[EventCountry "NET"]
[TimeControl "600"]
[WhiteClock "0:00:48"]
[BlackClock "0:02:22"]

1. e4 {[%emt 0:00:03]} c5 {[%emt 0:00:07]} 2. Nc3 {[%emt 0:00:04]} Nc6 {[%emt 0:00:06]} 3. Nf3 {[%emt 0:00:04]} g6 {[%emt 0:00:02]} 4. Bb5 {[%emt 0:00:10]} Nd4 {[%emt 0:00:07]} 5. Nxd4 {[%emt 0:00:08]} cxd4 {[%emt 0:00:03]} 6. Ne2 {[%emt 0:00:03]} Bg7 {[%emt 0:00:04]} 7. O-O {[%emt 0:00:03]} a6 {[%emt 0:00:10]} 8. Bc4 {[%emt 0:00:05]} e6 {[%emt 0:00:03]} 9. c3 {[%emt 0:00:19]} b5 {[%emt 0:00:02]} 10. Bb3 {[%emt 0:00:18]} Bb7 {[%emt 0:00:03]} 11. Bc2 {[%emt 0:00:07]} dxc3 {[%emt 0:00:32]} 12. dxc3 {[%emt 0:00:02]} Nf6 {[%emt 0:00:07]} 13. Ng3 {[%emt 0:00:08]} h5 {[%emt 0:00:07]} 14. e5 {[%emt 0:01:27]} Nd5 {[%emt 0:00:16]} 15. f4 {[%emt 0:00:06]} d6 {[%emt 0:00:02]} 16. exd6 {[%emt 0:01:39]} Qxd6 {[%emt 0:00:14]} 17. Be3 {[%emt 0:00:03]} h4 {[%emt 0:01:43]} 18. Ne4 {[%emt 0:00:08]} Qc7 {[%emt 0:00:02]} 19. Bd4 {[%emt 0:00:22]} Bxd4+ {[%emt 0:00:04]} 20. Qxd4 {[%emt 0:00:11]} O-O-O {[%emt 0:00:01]} 21. Qf2 {[%emt 0:00:13]} h3 {[%emt 0:00:04]} 22. g3 {[%emt 0:00:02]} Ba8 {[%emt 0:02:25]} 23. a4 {[%emt 0:00:10]} b4 {[%emt 0:00:01]} 24. c4 {[%emt 0:00:02]} Ne7 {[%emt 0:00:08]} 25. c5 {[%emt 0:00:10]} Qc6 {[%emt 0:00:09]} 26. Rfd1 {[%emt 0:01:55]} f5 {[%emt 0:00:08]} 27. Rd6 {[%emt 0:00:02]} Rxd6 {[%emt 0:00:18]} 28. cxd6 {[%emt 0:00:00]} fxe4 {[%emt 0:00:10]} 29. Qa7 {[%emt 0:00:01]} Bb7 {[%emt 0:00:10]} 30. Bxe4 {[%emt 0:00:59]} Qxe4 {[%emt 0:00:07]} 31. Rc1+ {[%emt 0:00:01]} Nc6 {[%emt 0:00:01]} 32. Qb6 {[%emt 0:00:07]} Qg2# {[%emt 0:00:02]} 0-1

[Event "CCT Chessable Masters Play-In 2025"]
[Site "Online"]
[Date "2025.02.17"]
[Round "4.52"]
[White "Yoo, Christopher Woojin"]
[Black "Meshkovs, Nikita"]
[Result "1-0"]
[ECO "C84"]
[WhiteElo "2588"]
[BlackElo "2531"]
[PlyCount "145"]
[EventDate "2025.02.13"]
[EventType "swiss"]
[EventCountry "NET"]
[TimeControl "600"]
[WhiteClock "0:01:21"]

1. e4 {[%emt 0:00:01]} e5 {[%emt 0:00:05]} 2. Nf3 {[%emt 0:00:01]} Nc6 {[%emt 0:00:00]} 3. Bb5 {[%emt 0:00:03]} a6 {[%emt 0:00:01]} 4. Ba4 {[%emt 0:00:00]} Nf6 {[%emt 0:00:01]} 5. d4 {[%emt 0:00:01]} exd4 {[%emt 0:00:05]} 6. O-O {[%emt 0:00:01]} Be7 {[%emt 0:00:15]} 7. e5 {[%emt 0:00:02]} Ne4 {[%emt 0:00:04]} 8. Nxd4 {[%emt 0:00:01]} Nc5 {[%emt 0:00:00]} 9. Nf5 {[%emt 0:00:01]} O-O {[%emt 0:00:20]} 10. Qg4 {[%emt 0:00:01]} g6 {[%emt 0:00:04]} 11. Bxc6 {[%emt 0:00:01]} dxc6 {[%emt 0:00:08]} 12. Nxe7+ {[%emt 0:00:01]} Qxe7 {[%emt 0:00:01]} 13. Qg3 {[%emt 0:00:01]} f6 {[%emt 0:00:36]} 14. exf6 {[%emt 0:00:17]} Qxf6 {[%emt 0:00:00]} 15. Nc3 {[%emt 0:00:42]} Bf5 {[%emt 0:00:08]} 16. Bg5 {[%emt 0:00:11]} Qf7 {[%emt 0:00:24]} 17. Rfe1 {[%emt 0:00:13]} Rfe8 {[%emt 0:00:09]} 18. Be3 {[%emt 0:00:03]} Ne4 {[%emt 0:00:09]} 19. Nxe4 {[%emt 0:00:04]} Rxe4 {[%emt 0:00:02]} 20. f3 {[%emt 0:00:50]} Re6 {[%emt 0:00:13]} 21. Bd4 {[%emt 0:00:03]} Rae8 {[%emt 0:00:14]} 22. Rxe6 {[%emt 0:00:02]} Rxe6 {[%emt 0:00:07]} 23. Re1 {[%emt 0:00:01]} Qd7 {[%emt 0:01:33]} 24. c3 {[%emt 0:00:18]} Qd6 {[%emt 0:00:33]} 25. Qh4 {[%emt 0:01:01]} c5 {[%emt 0:00:26]} 26. Rxe6 {[%emt 0:00:02]} Bxe6 {[%emt 0:00:02]} 27. Be3 {[%emt 0:00:05]} Bxa2 {[%emt 0:00:07]} 28. Qa4 {[%emt 0:00:09]} Bf7 {[%emt 0:00:17]} 29. h4 {[%emt 0:00:09]} Qe5 {[%emt 0:00:21]} 30. Kf2 {[%emt 0:00:05]} Qe7 {[%emt 0:00:19]} 31. Qf4 {[%emt 0:00:19]} a5 {[%emt 0:00:06]} 32. Qg3 {[%emt 0:00:14]} b5 {[%emt 0:00:17]} 33. h5 {[%emt 0:00:07]} b4 {[%emt 0:00:00]} 34. hxg6 {[%emt 0:00:05]} Bxg6 {[%emt 0:00:35]} 35. Qg4 {[%emt 0:00:02]} Kf7 {[%emt 0:00:15]} 36. Qc4+ {[%emt 0:00:03]} Qe6 {[%emt 0:00:12]} 37. Qxc5 {[%emt 0:00:07]} bxc3 {[%emt 0:00:27]} 38. Qxc7+ {[%emt 0:00:03]} Qe7 {[%emt 0:00:00]} 39. Qc4+ {[%emt 0:00:01]} Qe6 {[%emt 0:00:02]} 40. Qxc3 {[%emt 0:00:02]} Qd5 {[%emt 0:00:01]} 41. Qc7+ {[%emt 0:00:08]} Ke8 {[%emt 0:00:02]} 42. Qb8+ {[%emt 0:00:12]} Kd7 {[%emt 0:00:02]} 43. Qa7+ {[%emt 0:00:01]} Ke8 {[%emt 0:00:07]} 44. Bf4 {[%emt 0:00:20]} Qb5 {[%emt 0:00:03]} 45. Qe3+ {[%emt 0:00:06]} Kd7 {[%emt 0:00:02]} 46. Qd4+ {[%emt 0:00:02]} Ke6 {[%emt 0:00:03]} 47. Qd6+ {[%emt 0:00:02]} Kf7 {[%emt 0:00:00]} 48. Be5 {[%emt 0:00:04]} a4 {[%emt 0:00:13]} 49. g4 {[%emt 0:00:22]} Qd3 {[%emt 0:00:02]} 50. Qf6+ {[%emt 0:00:02]} Ke8 {[%emt 0:00:01]} 51. Qe6+ {[%emt 0:00:08]} Kd8 {[%emt 0:00:00]} 52. Bd6 {[%emt 0:00:06]} Qd4+ {[%emt 0:00:03]} 53. Kg3 {[%emt 0:00:07]} Qg1+ {[%emt 0:00:01]} 54. Kh4 {[%emt 0:00:05]} Qh1+ {[%emt 0:00:06]} 55. Kg5 {[%emt 0:00:02]} Qc1+ {[%emt 0:00:01]} 56. f4 {[%emt 0:00:01]} Bb1 {[%emt 0:00:15]} 57. Qe7+ {[%emt 0:00:06]} Kc8 {[%emt 0:00:01]} 58. Qe8+ {[%emt 0:00:02]} Kb7 {[%emt 0:00:01]} 59. Qb8+ {[%emt 0:00:01]} Ka6 {[%emt 0:00:01]} 60. Qa8+ {[%emt 0:00:01]} Kb6 {[%emt 0:00:01]} 61. Be5 {[%emt 0:00:14]} Qc6 {[%emt 0:00:04]} 62. Qb8+ {[%emt 0:00:05]} Kc5 {[%emt 0:00:02]} 63. Qf8+ {[%emt 0:00:13]} Kd5 {[%emt 0:00:01]} 64. Qd8+ {[%emt 0:00:03]} Kc5 {[%emt 0:00:02]} 65. Qa5+ {[%emt 0:00:05]} Kc4 {[%emt 0:00:02]} 66. Qc3+ {[%emt 0:00:16]} Kb5 {[%emt 0:00:00]} 67. Qxc6+ {[%emt 0:00:05]} Kxc6 {[%emt 0:00:00]} 68. f5 {[%emt 0:00:00]} Kd7 {[%emt 0:00:01]} 69. Kh6 {[%emt 0:00:03]} Be4 {[%emt 0:00:01]} 70. Kxh7 {[%emt 0:00:01]} Bf3 {[%emt 0:00:01]} 71. g5 {[%emt 0:00:01]} Be4 {[%emt 0:00:00]} 72. Kg6 {[%emt 0:00:01]} Bd3 {[%emt 0:00:02]} 73. Kf6 {[%emt 0:00:01]} 1-0

[Event "CCT Chessable Masters Play-In 2025"]
[Site "Online"]
[Date "2025.02.17"]
[Round "4.53"]
[White "Mendonca, Leon Luke"]
[Black "Van Foreest, Jorden"]
[Result "1-0"]
[ECO "E14"]
[WhiteElo "2641"]
[BlackElo "2654"]
[PlyCount "111"]
[EventDate "2025.02.13"]
[EventType "swiss"]
[EventCountry "NET"]
[TimeControl "600"]
[WhiteClock "0:01:17"]
[BlackClock "0:00:21"]

1. Nf3 {[%emt 0:00:01]} d5 {[%emt 0:01:24]} 2. e3 {[%emt 0:00:03]} Nf6 {[%emt 0:00:06]} 3. c4 {[%emt 0:00:02]} e6 {[%emt 0:00:04]} 4. d4 {[%emt 0:00:01]} b6 {[%emt 0:00:03]} 5. b3 {[%emt 0:00:02]} Bd6 {[%emt 0:00:02]} 6. Bd3 {[%emt 0:00:01]} O-O {[%emt 0:00:00]} 7. O-O {[%emt 0:00:01]} Bb7 {[%emt 0:00:01]} 8. cxd5 {[%emt 0:00:01]} exd5 {[%emt 0:00:01]} 9. Ba3 {[%emt 0:00:01]} c5 {[%emt 0:00:03]} 10. Nc3 {[%emt 0:00:06]} Nbd7 {[%emt 0:00:10]} 11. Rc1 {[%emt 0:00:05]} a6 {[%emt 0:00:02]} 12. Bb2 {[%emt 0:00:08]} Re8 {[%emt 0:00:04]} 13. Ne2 {[%emt 0:00:19]} Ne4 {[%emt 0:00:10]} 14. Ng3 {[%emt 0:00:13]} Nxg3 {[%emt 0:00:04]} 15. hxg3 {[%emt 0:00:02]} Qe7 {[%emt 0:00:04]} 16. Nh4 {[%emt 0:00:51]} g6 {[%emt 0:00:03]} 17. Qe2 {[%emt 0:00:19]} Nf6 {[%emt 0:00:17]} 18. Rfd1 {[%emt 0:00:05]} Ne4 {[%emt 0:00:17]} 19. Nf3 {[%emt 0:00:06]} h5 {[%emt 0:00:06]} 20. Ba1 {[%emt 0:00:05]} Ng5 {[%emt 0:01:52]} 21. dxc5 {[%emt 0:00:30]} bxc5 {[%emt 0:00:22]} 22. Qb2 {[%emt 0:00:43]} d4 {[%emt 0:00:25]} 23. Nxg5 {[%emt 0:01:10]} Qxg5 {[%emt 0:00:00]} 24. exd4 {[%emt 0:00:00]} h4 {[%emt 0:00:58]} 25. dxc5 {[%emt 0:00:01]} Be5 {[%emt 0:00:01]} 26. Qd2 {[%emt 0:00:03]} Qxd2 {[%emt 0:01:05]} 27. Rxd2 {[%emt 0:00:01]} Bxa1 {[%emt 0:00:01]} 28. Rxa1 {[%emt 0:00:00]} hxg3 {[%emt 0:00:02]} 29. fxg3 {[%emt 0:00:02]} Re3 {[%emt 0:00:10]} 30. Bc4 {[%emt 0:00:21]} Bc6 {[%emt 0:00:21]} 31. Rf1 {[%emt 0:00:05]} Be8 {[%emt 0:00:11]} 32. Rf3 {[%emt 0:00:21]} Re5 {[%emt 0:00:06]} 33. b4 {[%emt 0:00:11]} a5 {[%emt 0:00:03]} 34. a3 {[%emt 0:00:37]} axb4 {[%emt 0:00:01]} 35. axb4 {[%emt 0:00:00]} Re4 {[%emt 0:00:21]} 36. Rf4 {[%emt 0:00:07]} Re1+ {[%emt 0:00:09]} 37. Kf2 {[%emt 0:00:03]} Rc1 {[%emt 0:00:02]} 38. b5 {[%emt 0:00:26]} Kg7 {[%emt 0:00:02]} 39. c6 {[%emt 0:00:03]} f5 {[%emt 0:00:02]} 40. c7 {[%emt 0:00:24]} Bxb5 {[%emt 0:00:02]} 41. Bxb5 {[%emt 0:00:19]} Rxc7 {[%emt 0:00:00]} 42. Rd7+ {[%emt 0:00:02]} Rxd7 {[%emt 0:00:01]} 43. Bxd7 {[%emt 0:00:00]} Ra2+ {[%emt 0:00:01]} 44. Kg1 {[%emt 0:00:00]} Kh6 {[%emt 0:00:00]} 45. Bc6 {[%emt 0:00:05]} Kg5 {[%emt 0:00:01]} 46. Bf3 {[%emt 0:00:02]} Ra1+ {[%emt 0:00:00]} 47. Kh2 {[%emt 0:00:00]} Ra7 {[%emt 0:00:00]} 48. Rc4 {[%emt 0:00:01]} Rh7+ {[%emt 0:00:02]} 49. Kg1 {[%emt 0:00:01]} Ra7 {[%emt 0:00:00]} 50. g4 {[%emt 0:00:02]} f4 {[%emt 0:00:04]} 51. Rc5+ {[%emt 0:00:04]} Kh4 {[%emt 0:00:01]} 52. Kh2 {[%emt 0:00:01]} g5 {[%emt 0:00:03]} 53. Rc8 {[%emt 0:00:07]} Rh7 {[%emt 0:00:00]} 54. Be2 {[%emt 0:00:09]} Rh6 {[%emt 0:00:02]} 55. Rc3 {[%emt 0:00:09]} f3 {[%emt 0:00:07]} 56. Rxf3 {[%emt 0:00:01]} 1-0

[Event "CCT Chessable Masters Play-In 2025"]
[Site "Online"]
[Date "2025.02.17"]
[Round "4.54"]
[White "Pantsulaia, Levan"]
[Black "Sethuraman, S.P."]
[Result "0-1"]
[ECO "A50"]
[WhiteElo "2522"]
[BlackElo "2557"]
[PlyCount "72"]
[EventDate "2025.02.13"]
[EventType "swiss"]
[EventCountry "NET"]
[TimeControl "600"]
[WhiteClock "0:02:17"]
[BlackClock "0:03:56"]

1. Nf3 {[%emt 0:00:01]} Nf6 {[%emt 0:00:02]} 2. g3 {[%emt 0:00:01]} b6 {[%emt 0:00:01]} 3. Bg2 {[%emt 0:00:02]} Bb7 {[%emt 0:00:01]} 4. O-O {[%emt 0:00:03]} g6 {[%emt 0:00:01]} 5. c4 {[%emt 0:00:01]} Bg7 {[%emt 0:00:01]} 6. d4 {[%emt 0:00:01]} O-O {[%emt 0:00:01]} 7. d5 {[%emt 0:00:28]} Na6 {[%emt 0:00:02]} 8. Nc3 {[%emt 0:00:04]} Nc5 {[%emt 0:00:08]} 9. Nd4 {[%emt 0:00:05]} e5 {[%emt 0:00:06]} 10. Nc2 {[%emt 0:00:07]} a5 {[%emt 0:00:02]} 11. b3 {[%emt 0:00:04]} Ne8 {[%emt 0:00:09]} 12. Rb1 {[%emt 0:00:04]} f5 {[%emt 0:00:03]} 13. a3 {[%emt 0:00:20]} e4 {[%emt 0:00:07]} 14. Nd4 {[%emt 0:00:24]} Nd6 {[%emt 0:00:15]} 15. Be3 {[%emt 0:00:18]} a4 {[%emt 0:00:15]} 16. b4 {[%emt 0:00:06]} Nb3 {[%emt 0:00:03]} 17. Nxb3 {[%emt 0:01:10]} Bxc3 {[%emt 0:00:05]} 18. Nd2 {[%emt 0:00:01]} Qf6 {[%emt 0:00:27]} 19. Qc2 {[%emt 0:00:07]} b5 {[%emt 0:00:17]} 20. c5 {[%emt 0:00:18]} Bxd2 {[%emt 0:00:01]} 21. Bxd2 {[%emt 0:00:01]} Nc4 {[%emt 0:00:02]} 22. Bc3 {[%emt 0:00:00]} Qe7 {[%emt 0:00:55]} 23. Ba1 {[%emt 0:00:26]} Bxd5 {[%emt 0:00:03]} 24. Qc3 {[%emt 0:00:01]} Kf7 {[%emt 0:00:01]} 25. Rbd1 {[%emt 0:00:02]} c6 {[%emt 0:00:06]} 26. Kh1 {[%emt 0:00:49]} Ke8 {[%emt 0:00:07]} 27. f3 {[%emt 0:00:01]} Kd8 {[%emt 0:00:20]} 28. Rd4 {[%emt 0:00:06]} Kc7 {[%emt 0:00:12]} 29. Rfd1 {[%emt 0:00:08]} Rae8 {[%emt 0:00:23]} 30. Rxd5 {[%emt 0:00:41]} cxd5 {[%emt 0:00:04]} 31. Rxd5 {[%emt 0:00:00]} exf3 {[%emt 0:00:30]} 32. Bxf3 {[%emt 0:00:01]} Qe3 {[%emt 0:00:01]} 33. Qg7 {[%emt 0:01:00]} Qc1+ {[%emt 0:00:11]} 34. Kg2 {[%emt 0:00:02]} Ne3+ {[%emt 0:00:02]} 35. Kh3 {[%emt 0:00:02]} Nxd5 {[%emt 0:00:50]} 36. Bxd5 {[%emt 0:00:38]} Qf1+ {[%emt 0:00:10]} 0-1